bitfinex/quotes_SOLUSD_20260203
["timestamp","ask_amount","ask_price","bid_price","bid_amount"]
[1770146710498,28.0,99.206,99.171,2.92727474]
[1770146710695,10.14076223,99.2,99.16,0.1]
[1770146710930,10.14076223,99.18,99.16,0.1]
[1770146711110,28.0,99.179,99.16,0.1]
[1770146711317,28.0,99.178,99.16,0.1]
[1770146711830,28.0,99.177,99.121,2.92727474]
[1770146712005,10.14076223,99.19,99.141,2.92727474]
[1770146712204,10.08139761,99.193,99.141,2.92727474]
[1770146712510,10.08139761,99.193,99.08,0.1]
[1770146712511,28.0,99.192,99.151,2.92727474]
[1770146712718,28.0,99.192,99.16,10.14076223]
[1770146712915,28.0,99.192,99.151,2.92727474]
[1770146713298,176.2066749,99.776,99.17,10.14076223]
[1770146713299,2.57749089,99.211,99.17,10.14076223]
[1770146713501,2.57749089,99.211,99.161,2.92727474]
[1770146713502,28.0,99.21,99.18,10.14076223]
[1770146713719,28.0,99.21,99.181,2.92727474]
[1770146713930,28.0,99.216,99.19,10.14076223]
[1770146714305,28.0,99.221,99.19,10.14076223]
[1770146714507,28.0,99.221,99.181,2.92727474]
[1770146714707,10.14076223,99.23,99.18,10.14076223]
[1770146714708,2.56663079,99.223,99.18,10.14076223]
[1770146714903,2.56663079,99.223,99.167,2.92727474]
[1770146714904,10.14076223,99.21,99.17,10.14076223]
[1770146715104,28.0,99.209,99.167,2.92727474]
[1770146715815,28.0,99.209,99.17,10.14076223]
[1770146716016,28.0,99.209,99.19,10.14076223]
[1770146716326,28.0,99.209,99.181,2.92727474]
[1770146716625,40.29372258,99.272,99.181,2.92727474]
[1770146716626,2.55579568,99.235,99.19,10.14076223]
[1770146716932,28.02,99.233,99.2,10.14076223]
[1770146717115,28.02,99.233,99.21,10.14076223]
[1770146717428,28.02,99.233,99.211,2.92727474]
[1770146717930,28.02,99.233,99.191,2.92727474]
[1770146718225,28.02,99.233,99.201,2.92727474]
[1770146718523,28.02,99.233,99.136,80.69706692]
[1770146718524,28.02,99.257,99.22,10.14076223]
[1770146718735,28.02,99.256,99.21,10.14076223]
[1770146719105,10.14076223,99.24,99.195,2.92727474]
[1770146719305,28.02,99.239,99.195,2.92727474]
[1770146719523,10.14076223,99.23,99.129,2.92727474]
[1770146719706,10.14076223,99.23,99.181,2.92727474]
[1770146720319,2.5392874,99.237,99.19,13.06803697]
[1770146720513,10.07698818,99.236,99.19,13.06803697]
[1770146720820,28.02,99.239,99.191,2.91187605]
[1770146721023,10.0767851,99.238,99.191,2.91187605]
[1770146721324,10.14076223,99.23,99.191,2.91187605]
[1770146721547,10.14076223,99.22,99.18,10.14076223]
[1770146721712,2.52334144,99.209,99.163,2.91187605]
[1770146721902,28.02,99.208,99.17,10.14076223]
[1770146722329,28.02,99.208,99.163,2.91187605]
[1770146722715,10.14076223,99.2,99.163,2.91187605]
[1770146723019,28.02,99.199,99.163,2.91187605]
[1770146723329,10.14076223,99.18,99.143,2.91187605]
[1770146723524,2.51814776,99.194,99.143,2.91187605]
[1770146723525,10.14076223,99.17,99.143,2.91187605]
[1770146723727,28.02,99.169,99.143,2.91187605]
[1770146723933,10.14076223,99.18,99.143,2.91187605]
[1770146723934,28.02,99.173,99.143,2.91187605]
[1770146724318,28.02,99.172,99.143,2.91187605]
[1770146725122,28.02,99.172,99.102,4.27527085]
[1770146725123,2.50793867,99.233,99.161,2.91187605]
[1770146725312,6.55235278,99.232,99.191,2.91187605]
[1770146725506,6.55235278,99.232,99.201,2.91187605]
[1770146725721,6.55235278,99.232,99.2,13.05263828]
[1770146726011,6.55235278,99.232,99.2,2.91187605]
[1770146726327,6.55235278,99.232,99.201,2.91187605]
[1770146727110,2.49796276,99.28,99.221,2.91187605]
[1770146727307,6.38751993,99.271,99.221,2.91187605]
[1770146727831,6.38751993,99.271,99.174,40.33313769]
[1770146727832,2.87446903,99.269,99.22,10.14076223]
[1770146728030,2.87446903,99.259,99.208,2.91187605]
[1770146728224,2.87446903,99.249,99.2,10.14076223]
[1770146728424,2.87446903,99.249,99.193,2.91187605]
[1770146728625,2.87446903,99.249,99.201,2.91187605]
[1770146729019,28.02,99.258,99.201,2.91187605]
[1770146729224,2.87446903,99.257,99.201,2.91187605]
[1770146729835,28.02,99.258,99.22,10.14076223]
[1770146730047,6.28453496,99.269,99.24,10.14076223]
[1770146730541,6.28453496,99.269,99.241,2.91187605]
[1770146730938,6.28453496,99.269,99.202,35.28154673]
[1770146730939,6.28453496,99.269,99.228,2.91187605]
[1770146731436,2.87446903,99.267,99.221,2.91187605]
[1770146731814,2.87446903,99.267,99.21,10.14076223]
[1770146732019,2.87446903,99.267,99.221,2.91187605]
[1770146732722,10.14076223,99.26,99.221,2.91187605]
[1770146733024,10.14076223,99.26,99.209,2.91187605]
[1770146733025,2.87446903,99.259,99.209,2.91187605]
[1770146733640,6.28453496,99.269,99.209,2.91187605]
[1770146733641,13.01523126,99.25,99.209,2.91187605]
[1770146733938,2.87446903,99.25,99.209,2.91187605]
[1770146734443,2.87446903,99.25,99.21,10.14076223]
[1770146734628,13.01523126,99.25,99.209,2.91187605]
[1770146735328,2.87446903,99.25,99.209,2.91187605]
[1770146736436,2.87446903,99.249,99.209,2.91187605]
[1770146736631,10.15298637,99.24,99.191,2.91187605]
[1770146736830,2.87446903,99.239,99.191,2.91187605]
[1770146737622,10.15298637,99.21,99.169,2.91187605]
[1770146737839,28.02,99.212,99.17,20.2366017]
[1770146738138,28.02,99.212,99.17,13.06486242]
[1770146738437,28.02,99.212,99.171,2.91187605]
[1770146738734,10.15298637,99.21,99.171,2.91187605]
[1770146738919,10.15298637,99.21,99.159,2.91187605]
[1770146739119,10.15298637,99.21,99.142,4.27527085]
[1770146739120,28.02,99.217,99.171,2.91187605]
[1770146739441,40.29160221,99.277,99.16,10.15298637]
[1770146739442,2.87446903,99.209,99.16,10.15298637]
[1770146739738,2.87446903,99.209,99.164,10.08425731]
[1770146740118,2.87446903,99.209,99.15,20.23866532]
[1770146740324,2.87446903,99.209,99.16,13.06486242]
[1770146740633,2.87446903,99.209,99.16,2.91187605]
[1770146741342,2.87446903,99.209,99.139,25.21698057]
[1770146741343,10.15298637,99.19,99.146,2.91187605]
[1770146741543,2.87446903,99.226,99.18,10.15298637]
[1770146741728,2.87446903,99.226,99.19,10.15298637]
[1770146742129,2.87446903,99.226,99.165,2.91187605]
[1770146742336,2.87446903,99.209,99.151,2.91187605]
[1770146742534,2.87446903,99.209,99.161,2.91187605]
[1770146743429,28.02,99.225,99.181,2.91187605]
[1770146743623,2.87446903,99.225,99.171,2.91187605]
[1770146743831,10.15298637,99.22,99.171,2.91187605]
[1770146744029,2.87446903,99.219,99.171,2.91187605]
[1770146744229,10.15298637,99.21,99.161,2.91187605]
[1770146744431,28.02,99.227,99.171,2.91187605]
[1770146744643,2.87446903,99.226,99.171,2.91187605]
[1770146745039,2.87446903,99.219,99.171,2.91187605]
[1770146745628,28.02,99.227,99.15,10.15298637]
[1770146745629,2.87446903,99.199,99.15,10.15298637]
[1770146745828,2.87446903,99.199,99.151,2.91187605]
[1770146746755,2.87446903,99.199,99.141,2.91187605]
[1770146747054,2.87446903,99.189,99.141,2.91187605]
[1770146747231,2.87446903,99.179,99.134,2.91187605]
[1770146747762,2.87446903,99.179,99.114,25.22337983]
[1770146747763,2.87446903,99.159,99.11,10.15298637]
[1770146747958,2.87446903,99.157,99.111,2.91187605]
[1770146748164,5.36086188,99.214,99.106,10.09012015]
[1770146748165,2.87446903,99.176,99.131,2.91187605]
[1770146748343,2.87446903,99.198,99.16,10.15298637]
[1770146748659,2.87446903,99.189,99.14,10.15298637]
[1770146749367,2.87446903,99.189,99.086,50.52834992]
[1770146749368,10.15298637,99.18,99.13,10.15298637]
[1770146749538,10.08288128,99.178,99.123,2.91187605]
[1770146749740,2.87446903,99.169,99.123,2.91187605]
[1770146750045,2.87446903,99.169,99.111,2.91187605]
[1770146750359,2.87446903,99.177,99.111,2.91187605]
[1770146750551,2.92373843,99.149,99.1,10.15298637]
[1770146751161,2.92373843,99.149,99.07,0.1]
[1770146751162,2.92373843,99.129,99.07,3.08615177]
[1770146751458,2.92373843,99.099,99.07,0.1]
[1770146752753,2.92373843,99.089,99.07,0.1]
[1770146753063,2.92373843,99.089,98.986,50.74148531]
[1770146753064,2.92373843,99.049,99.004,2.19220033]
[1770146753246,10.15298637,99.02,98.974,2.98615177]
[1770146753450,0.93370847,99.047,98.981,2.75565266]
[1770146753656,0.93370847,99.045,98.991,2.75565266]
[1770146753843,0.93370847,99.045,98.93,40.43222642]
[1770146753844,28.02,99.044,99.001,2.75565266]
[1770146754159,28.02,99.043,99.001,2.75565266]
[1770146754664,0.93055528,99.065,99.03,10.15298637]
[1770146754845,0.93055528,99.065,98.985,4.27527085]
[1770146755051,4.27527085,99.037,98.91,3.03580439]
[1770146755362,10.15298637,98.97,98.911,3.03580439]
[1770146755558,28.04,98.989,98.941,3.03580439]
[1770146755755,25.24652071,99.024,98.98,10.15298637]
[1770146755956,10.15298637,99.02,98.981,3.03580439]
[1770146756255,4.27527085,99.007,98.96,10.15298637]
[1770146756440,4.27527085,99.007,98.936,3.03580439]
[1770146756643,4.27527085,98.967,98.921,3.03580439]
[1770146756844,10.15298637,98.94,98.907,3.03580439]
[1770146757048,196.92394692,99.023,98.89,3.03580439]
[1770146757049,28.04,98.939,98.89,3.03580439]
[1770146757264,4.27527085,98.917,98.873,3.03580439]
[1770146757560,10.15298637,98.96,98.825,27.76925743]
[1770146757561,28.04,98.94,98.901,3.03580439]
[1770146757764,10.15298637,98.95,98.901,3.03580439]
[1770146758368,10.15298637,98.95,98.837,50.73997628]
[1770146758369,2.22788634,98.959,98.807,40.48277596]
[1770146758568,2.25830265,98.974,98.827,40.47471582]
[1770146758865,10.10331664,98.978,98.92,10.15298637]
[1770146758866,4.27527085,98.967,98.92,10.15298637]
[1770146759046,2.25830265,98.966,98.93,10.15298637]
[1770146759246,4.27527085,98.967,98.88,10.15298637]
[1770146759543,4.27527085,98.967,98.92,10.15298637]
[1770146759751,28.04,98.97,98.93,10.15298637]
[1770146759957,28.04,98.97,98.94,10.15298637]
[1770146760156,28.06,98.994,98.96,10.15298637]
[1770146760360,5.36086188,99.022,98.95,2.75565266]
[1770146760361,2.28836961,99.008,98.95,2.75565266]
[1770146760562,2.31929533,99.007,98.95,2.75565266]
[1770146760863,10.15298637,99.0,98.951,2.75565266]
[1770146761366,28.06,99.0,98.97,10.15298637]
[1770146761566,28.06,99.0,98.967,2.75565266]
[1770146761943,28.06,99.0,98.939,2.75565266]
[1770146761944,10.15298637,98.98,98.939,2.75565266]
[1770146762267,2.34986585,98.989,98.939,2.75565266]
[1770146762268,2.34986585,98.989,98.94,10.15298637]
[1770146762850,38.21298637,99.0,98.951,2.75565266]
[1770146763053,10.15298637,99.0,98.951,2.75565266]
[1770146763868,20.25403935,99.0,98.951,2.75565266]
[1770146764355,2.38008523,99.006,98.96,10.15298637]
[1770146764660,2.38008523,99.006,98.885,40.45087965]
[1770146764661,2.45433922,99.046,98.991,2.75565266]
[1770146764861,2.45433922,99.046,99.0,10.15298637]
[1770146765066,10.15298637,99.03,98.991,2.75565266]
[1770146766875,10.15298637,99.03,98.98,10.15298637]
[1770146766876,10.15298637,99.02,98.98,10.15298637]
[1770146767054,10.15298637,98.99,98.963,2.75565266]
[1770146767253,4.27527085,99.017,98.933,2.75565266]
[1770146767254,10.15298637,98.98,98.933,2.75565266]
[1770146767458,10.15298637,98.99,98.941,2.75565266]
[1770146767657,28.08,98.991,98.941,2.75565266]
[1770146767850,10.15298637,98.98,98.941,2.75565266]
[1770146768783,10.10133208,98.997,98.941,2.75565266]
[1770146768973,10.15298637,98.98,98.941,2.75565266]
[1770146769283,2.59779806,98.975,98.926,2.75565266]
[1770146769466,38.23298637,98.98,98.931,2.75565266]
[1770146769780,10.15298637,98.97,98.931,2.75565266]
[1770146769988,10.15298637,98.98,98.931,2.75565266]
[1770146770285,10.15298637,98.99,98.941,2.75565266]
[1770146770580,10.15298637,98.97,98.941,2.75565266]
[1770146770781,10.15298637,98.96,98.923,2.75565266]
[1770146771278,10.15298637,98.99,98.941,2.75565266]
[1770146771853,10.15298637,99.0,98.951,2.75565266]
[1770146772477,10.15298637,98.99,98.951,2.75565266]
[1770146772657,10.15298637,99.0,98.951,2.75565266]
[1770146772856,10.15298637,98.99,98.951,2.75565266]
[1770146773079,10.15298637,98.97,98.938,2.75565266]
[1770146773460,10.15298637,98.96,98.938,2.75565266]
[1770146773760,10.15298637,98.98,98.931,2.75565266]
[1770146773965,10.15298637,98.99,98.941,2.75565266]
[1770146774256,28.08,98.993,98.951,2.75565266]
[1770146774456,2.76804597,99.008,98.96,10.15298637]
[1770146774665,4.27527085,99.017,98.971,2.75565266]
[1770146774883,10.15298637,99.01,98.971,2.75565266]
[1770146775081,10.15298637,99.0,98.958,2.75565266]
[1770146775271,10.15298637,99.0,98.927,4.27527085]
[1770146775272,10.15298637,99.01,98.971,2.75565266]
[1770146775462,32.35527085,99.027,98.971,2.75565266]
[1770146775667,32.35527085,99.027,98.942,10.10693133]
[1770146775668,28.08,99.027,98.981,2.75565266]
[1770146776060,10.15298637,99.0,98.961,2.75565266]
[1770146776256,10.15298637,98.99,98.961,2.75565266]
[1770146776662,10.15298637,98.99,98.941,2.75565266]
[1770146777184,10.15298637,98.98,98.941,2.75565266]
[1770146779671,28.08,98.99,98.941,2.75565266]
[1770146779889,10.15298637,98.98,98.941,2.75565266]
[1770146780076,28.08,98.99,98.941,2.75565266]
[1770146780275,40.35936401,99.11,98.981,2.75565266]
[1770146780490,10.15298637,99.07,99.021,3.08779427]
[1770146780804,3.02079202,99.074,99.03,10.15298637]
[1770146780962,28.08,99.079,99.031,3.08779427]
[1770146781166,28.08,99.079,98.962,0.14216157]
[1770146781167,10.15298637,99.05,99.001,3.08779427]
[1770146781399,10.15298637,99.03,99.001,3.08779427]
[1770146781618,10.15298637,99.04,99.001,3.08779427]
[1770146782465,10.15298637,99.05,99.001,3.08779427]
[1770146782776,3.08041226,99.051,99.001,3.08779427]
[1770146782989,10.15298637,99.04,99.001,3.08779427]
[1770146783974,10.15298637,99.05,99.01,10.15298637]
[1770146784199,10.15298637,99.07,99.021,3.08779427]
[1770146784403,10.15298637,99.06,99.021,3.08779427]
[1770146784780,10.15298637,99.07,99.021,3.08779427]
[1770146785099,28.08,99.08,99.041,3.08779427]
[1770146785285,5.36086188,99.113,99.041,3.08779427]
[1770146785286,3.13867076,99.097,99.05,10.15298637]
[1770146785674,10.15298637,99.08,99.041,3.08779427]
[1770146786093,10.15298637,99.07,99.027,3.08779427]
[1770146786289,3.16729911,99.079,99.027,3.08779427]
[1770146786486,13.28730759,99.092,99.041,3.08779427]
[1770146786695,10.15298637,99.08,99.041,3.08779427]
[1770146787087,10.15298637,99.07,99.028,3.08779427]
[1770146787297,10.15298637,99.07,99.031,3.08779427]
[1770146787501,3.19559864,99.079,99.031,3.08779427]
[1770146787902,10.15298637,99.07,99.031,3.08779427]
[1770146788093,3.19559864,99.079,99.031,3.08779427]
[1770146788801,3.24259137,99.077,99.031,3.08779427]
[1770146788975,10.15298637,99.07,99.031,3.08779427]
[1770146789182,13.39557774,99.09,99.04,3.08779427]
[1770146789501,3.24259137,99.089,99.041,3.08779427]
[1770146789700,10.15298637,99.07,99.041,3.08779427]
[1770146790000,10.15298637,99.06,99.023,3.08779427]
[1770146790183,3.24259137,99.07,99.023,3.08779427]
[1770146790383,3.24259137,99.07,99.03,10.15298637]
[1770146790590,3.24259137,99.07,99.023,3.08779427]
[1770146790591,3.24259137,99.069,99.023,3.08779427]
[1770146791178,10.15298637,99.06,99.02,10.15298637]
[1770146791376,10.15298637,99.03,98.999,3.08779427]
[1770146791807,10.15298637,99.03,98.923,5.36086188]
[1770146791808,10.15298637,99.02,98.981,3.08779427]
[1770146792190,10.15298637,99.04,99.0,10.15298637]
[1770146792394,10.15298637,99.04,99.0,13.24078064]
[1770146792594,3.24259137,99.042,99.01,10.15298637]
[1770146792792,28.08,99.043,99.01,10.15298637]
[1770146793102,3.24259137,99.055,99.01,10.15298637]
[1770146794100,3.24259137,99.055,99.02,10.15298637]
[1770146794306,28.08,99.061,99.02,10.15298637]
[1770146794505,3.24259137,99.068,99.03,10.15298637]
[1770146794886,3.24259137,99.068,99.02,10.15298637]
[1770146795383,3.24259137,99.068,99.03,10.15298637]
[1770146796006,3.24259137,99.068,99.04,10.15298637]
[1770146796207,3.24259137,99.091,99.06,10.15298637]
[1770146796687,3.24259137,99.091,99.07,10.15298637]
[1770146797310,3.24259137,99.091,99.06,10.15298637]
[1770146797612,3.24259137,99.091,98.947,40.42538883]
[1770146797613,3.24259137,99.101,99.07,10.15298637]
[1770146797795,3.24259137,99.101,99.08,10.15298637]
[1770146797990,3.24259137,99.113,99.09,10.15298637]
[1770146798184,13.33214069,99.113,99.08,10.15298637]
[1770146798385,7.51786222,99.112,99.08,10.18182171]
[1770146798605,3.24259137,99.112,99.09,10.18182171]
[1770146798985,3.24259137,99.112,99.069,3.08779427]
[1770146799213,3.24259137,99.124,99.09,10.18182171]
[1770146799409,3.24259137,99.123,99.08,10.18182171]
[1770146800405,3.24259137,99.121,99.09,10.18182171]
[1770146800595,3.24259137,99.133,99.1,10.18182171]
[1770146800794,3.24259137,99.132,99.1,10.18182171]
[1770146802287,3.24259137,99.132,99.11,10.18182171]
[1770146803388,28.06,99.137,99.11,10.18182171]
[1770146803696,28.06,99.137,99.13,10.18182171]
[1770146803891,10.08349606,99.172,99.13,10.18182171]
[1770146804097,50.39972292,99.207,99.064,0.14216157]
[1770146804098,28.06,99.173,99.15,10.18182171]
[1770146804291,3.24259137,99.183,99.14,3.08779427]
[1770146804292,3.24259137,99.183,99.16,10.18182171]
[1770146804498,3.24259137,99.197,99.15,10.18182171]
[1770146804702,8.22687008,99.22,99.093,25.22870118]
[1770146804703,3.24259137,99.237,99.171,3.08779427]
[1770146804911,3.24259137,99.237,99.183,3.08779427]
[1770146805204,3.24259137,99.219,99.17,10.18182171]
[1770146805391,3.24259137,99.209,99.16,10.18182171]
[1770146805587,31.30259137,99.209,99.17,10.18182171]
[1770146806312,28.06,99.209,99.17,10.18182171]
[1770146806498,10.18182171,99.22,99.17,13.26961598]
[1770146806699,4.27527085,99.233,99.17,13.26961598]
[1770146806700,10.18182171,99.21,99.17,3.08779427]
[1770146807014,3.24259137,99.218,99.18,10.18182171]
[1770146807189,3.24259137,99.218,99.17,13.26961598]
[1770146807385,3.24259137,99.218,99.171,3.08779427]
[1770146808818,3.24259137,99.218,99.18,10.18182171]
[1770146809020,3.24259137,99.218,99.171,3.08779427]
[1770146809210,28.06,99.219,99.16,10.18182171]
[1770146809211,3.24259137,99.209,99.16,10.18182171]
[1770146809594,3.24259137,99.209,99.161,3.08779427]
[1770146809795,3.24259137,99.209,99.17,10.18182171]
[1770146810316,28.06,99.219,99.171,3.08779427]
[1770146810912,28.06,99.219,99.123,4.27527085]
[1770146810913,3.49818302,99.266,99.211,3.52188515]
[1770146811114,3.49818302,99.279,99.24,10.18182171]
[1770146811311,10.07121295,99.293,99.25,13.70370686]
[1770146811499,6.41056063,99.278,99.26,10.18182171]
[1770146811701,6.41056063,99.278,99.241,3.52188515]
[1770146811904,6.41056063,99.278,99.23,10.18182171]
[1770146811905,3.49818302,99.27,99.23,10.18182171]
[1770146812210,3.49818302,99.27,99.227,3.52188515]
[1770146812211,10.18182171,99.26,99.215,3.52188515]
[1770146812414,10.18182171,99.25,99.201,3.52188515]
[1770146812597,10.18182171,99.25,99.21,10.18182171]
[1770146812798,13.68000473,99.25,99.21,10.18182171]
[1770146813016,10.18182171,99.24,99.201,3.52188515]
[1770146813216,6.3381843,99.247,99.21,13.70370686]
[1770146813592,6.3381843,99.247,99.21,10.18182171]
[1770146813794,10.03332463,99.247,99.198,3.67329301]
[1770146813998,10.03332463,99.247,99.21,10.18182171]
[1770146814518,6.3381843,99.247,99.221,3.67329301]
[1770146814718,6.3381843,99.247,99.21,10.18182171]
[1770146814923,6.3381843,99.247,99.211,3.67329301]
[1770146815398,6.3381843,99.247,99.21,10.18182171]
[1770146815399,6.3381843,99.247,99.207,3.67329301]
[1770146815604,6.3381843,99.247,99.21,10.18182171]
[1770146816008,10.18182171,99.24,99.207,3.67329301]
[1770146816320,3.69514033,99.251,99.207,3.67329301]
[1770146816321,6.33163341,99.239,99.207,3.67329301]
[1770146816505,6.33163341,99.239,99.211,3.67329301]
[1770146816709,6.33163341,99.239,99.22,10.18182171]
[1770146817009,6.33163341,99.239,99.211,3.67329301]
[1770146817599,3.69514033,99.238,99.199,3.67329301]
[1770146818005,3.69514033,99.238,99.187,3.67329301]
[1770146818006,10.18182171,99.23,99.187,3.67329301]
[1770146818219,10.18182171,99.23,99.191,3.67329301]
[1770146818417,38.20182171,99.23,99.191,3.67329301]
[1770146819138,3.69514033,99.237,99.191,3.67329301]
[1770146819139,28.02,99.231,99.191,3.67329301]
[1770146819315,3.69514033,99.237,99.191,3.67329301]
[1770146819316,28.02,99.232,99.191,3.67329301]
[1770146819518,10.18182171,99.22,99.145,0.14216157]
[1770146819717,3.69514033,99.229,99.191,3.67329301]
[1770146820425,13.87696204,99.22,99.18,3.67329301]
[1770146820600,31.71514033,99.219,99.161,3.67329301]
[1770146820799,28.02,99.219,99.191,3.67329301]
[1770146821021,28.02,99.232,99.2,10.18182171]
[1770146821226,10.18182171,99.24,99.185,3.67329301]
[1770146821419,28.02,99.234,99.191,3.67329301]
[1770146821636,3.69514033,99.229,99.157,3.67329301]
[1770146821825,10.18182171,99.2,99.171,3.67329301]
[1770146822007,28.02,99.205,99.171,3.67329301]
[1770146822947,3.69514033,99.239,99.191,3.67329301]
[1770146823111,3.69514033,99.229,99.181,3.67329301]
[1770146823641,28.02,99.238,99.17,10.18182171]
[1770146823642,3.69514033,99.209,99.17,10.18182171]
[1770146823808,3.69514033,99.209,99.119,25.22211549]
[1770146823809,3.69514033,99.209,99.16,10.18182171]
[1770146824009,28.02,99.213,99.158,3.67329301]
[1770146824325,28.02,99.213,99.181,3.67329301]
[1770146824525,3.69514033,99.209,99.169,3.67329301]
[1770146825032,28.02,99.213,99.18,10.18182171]
[1770146827107,28.02,99.213,99.181,3.67329301]
[1770146827307,28.02,99.212,99.181,3.67329301]
[1770146827543,6.32199687,99.241,99.201,3.67329301]
[1770146827711,6.32199687,99.241,99.22,10.18182171]
[1770146828034,6.32199687,99.241,99.23,10.18182171]
[1770146828214,10.07035547,99.302,99.23,10.18182171]
[1770146828215,6.38237262,99.278,99.23,10.18182171]
[1770146828417,3.99149757,99.277,99.23,10.18182171]
[1770146828634,3.99149757,99.259,99.21,10.18182171]
[1770146828817,3.99149757,99.257,99.21,10.18182171]
[1770146829018,3.99149757,99.256,99.21,10.18182171]
[1770146829215,3.99149757,99.239,99.191,0.02002121]
[1770146829416,3.99149757,99.239,99.21,10.18182171]
[1770146829729,3.99149757,99.229,99.18,10.18182171]
[1770146829946,3.99149757,99.229,99.19,10.18182171]
[1770146830112,3.99149757,99.219,99.18,10.18182171]
[1770146830527,3.99149757,99.219,99.19,10.18182171]
[1770146830934,28.02,99.222,99.15,10.18182171]
[1770146830935,3.99149757,99.199,99.15,10.18182171]
[1770146831129,10.18182171,99.2,99.12,10.18182171]
[1770146831130,10.18182171,99.16,99.12,10.18182171]
[1770146831333,3.99149757,99.159,99.12,10.18182171]
[1770146832226,3.99149757,99.159,99.11,10.18182171]
[1770146832434,3.99149757,99.159,99.12,10.18182171]
[1770146832735,10.18182171,99.15,99.11,10.18182171]
[1770146832913,3.99149757,99.159,99.11,10.18182171]
[1770146833125,3.99149757,99.159,99.12,10.18182171]
[1770146833344,3.99149757,99.159,99.11,10.18182171]
[1770146833849,3.99149757,99.149,99.1,10.18182171]
[1770146834166,3.99149757,99.129,99.09,10.18182171]
[1770146834440,14.17331928,99.12,99.08,0.1]
[1770146834931,28.02,99.13,99.09,10.18182171]
[1770146835436,42.19331928,99.13,99.09,10.18182171]
[1770146835637,32.01149757,99.13,99.1,10.18182171]
[1770146836025,3.99149757,99.13,99.1,10.18182171]
[1770146836222,32.01149757,99.144,99.12,10.18182171]
[1770146836426,3.99149757,99.144,99.12,10.18182171]
[1770146836627,3.99149757,99.144,99.11,10.18182171]
[1770146837543,28.02,99.155,99.12,10.18182171]
[1770146838138,3.99149757,99.156,99.13,10.18182171]
[1770146838322,3.99149757,99.156,99.12,10.18182171]
[1770146838518,3.99149757,99.156,99.05,40.3832445]
[1770146838519,3.99149757,99.168,99.14,10.18182171]
[1770146839728,3.99149757,99.168,99.13,10.18182171]
[1770146839931,3.99149757,99.168,99.14,10.18182171]
[1770146840130,3.99149757,99.173,99.118,0.03710033]
[1770146840447,3.99149757,99.173,99.14,10.18182171]
[1770146840621,6.31042774,99.174,99.15,10.18182171]
[1770146840824,6.31042774,99.174,99.16,10.18182171]
[1770146841939,3.99149757,99.21,99.16,10.18182171]
[1770146842145,3.99149757,99.221,99.2,10.18182171]
[1770146842323,3.99149757,99.221,99.19,10.18182171]
[1770146842523,3.99149757,99.219,99.17,10.18182171]
[1770146843143,3.99149757,99.209,99.16,10.18182171]
[1770146844148,3.99149757,99.189,99.14,10.18182171]
[1770146844522,3.99149757,99.189,99.15,10.18182171]
[1770146844730,28.02,99.203,99.17,10.18182171]
[1770146844957,3.99149757,99.189,99.14,10.18182171]
[1770146845464,3.99149757,99.179,99.13,10.18182171]
[1770146845635,3.99149757,99.179,99.14,10.18182171]
[1770146845834,3.99149757,99.179,99.13,10.18182171]
[1770146846329,3.99149757,99.179,99.127,10.08804062]
[1770146846533,3.99149757,99.179,99.083,50.60546294]
[1770146846534,3.99149757,99.191,99.15,10.18182171]
[1770146846836,3.99149757,99.189,99.15,10.18182171]
[1770146847030,3.99149757,99.202,99.17,10.18182171]
[1770146847632,3.99149757,99.202,99.18,10.18182171]
[1770146847840,3.99149757,99.224,99.18,10.18182171]
[1770146848054,3.99149757,99.219,99.17,10.18182171]
[1770146848647,3.99149757,99.219,99.18,10.18182171]
[1770146849261,3.99149757,99.209,99.16,10.18182171]
[1770146849445,3.99149757,99.209,99.17,10.18182171]
[1770146850061,3.99149757,99.199,99.15,10.18182171]
[1770146850265,3.99149757,99.199,99.16,10.18182171]
[1770146850564,3.99149757,99.199,99.15,10.18182171]
[1770146851243,3.99149757,99.199,99.133,10.08742427]
[1770146851244,3.99149757,99.189,99.14,10.18182171]
[1770146851439,3.99149757,99.189,99.15,10.18182171]
[1770146851667,3.99149757,99.169,99.097,25.22776016]
[1770146851974,3.99149757,99.183,99.14,10.18182171]
[1770146852259,3.99149757,99.179,99.13,10.18182171]
[1770146852653,3.99149757,99.179,99.104,25.22588921]
[1770146852654,3.99149757,99.179,99.14,10.18182171]
[1770146852858,10.08098744,99.197,99.083,50.60546294]
[1770146852859,3.99149757,99.197,99.16,10.18182171]
[1770146853089,3.99149757,99.197,99.15,10.18182171]
[1770146853294,3.99149757,99.197,99.16,10.18182171]
[1770146853589,3.99149757,99.197,99.15,10.18182171]
[1770146854283,28.02,99.222,99.17,10.18182171]
[1770146854284,3.99149757,99.209,99.17,10.18182171]
[1770146854473,3.99149757,99.223,99.18,10.18182171]
[1770146854667,28.02,99.235,99.17,10.18182171]
[1770146854668,3.99149757,99.219,99.17,10.18182171]
[1770146854872,3.99149757,99.219,99.155,4.27527085]
[1770146855174,3.99149757,99.219,99.16,10.18182171]